[Event "*** Titled Tuesday Blitz"]
[Site "Chess.com"]
[Date "2019.01.01"]
[Round "5"]
[White "Keaton87"]
[Black "CaptainCasanova"]
[Result "0-1"]
[WhiteElo "2518"]
[BlackElo "2741"]
[TimeControl "180+2"]
[EndTime "14:12:13 PST"]
[Termination "CaptainCasanova won by resignation"]

1. Nf3 {[%clk 0:03:01.9]} 1... Nf6 {[%clk 0:02:56.4]} 2. c4 {[%clk 0:03:02.3]}
2... c6 {[%clk 0:02:57.2]} 3. Nc3 {[%clk 0:03:01.2]} 3... d5 {[%clk 0:02:59.1]}
4. e3 {[%clk 0:03:02]} 4... e6 {[%clk 0:02:53.9]} 5. b3 {[%clk 0:03:00.6]} 5...
Nbd7 {[%clk 0:02:51.9]} 6. Bb2 {[%clk 0:03:01.6]} 6... Bd6 {[%clk 0:02:52.4]} 7.
Qc2 {[%clk 0:03:02.6]} 7... O-O {[%clk 0:02:50.7]} 8. Be2 {[%clk 0:03:03.8]}
8... Qe7 {[%clk 0:02:47.3]} 9. O-O {[%clk 0:03:02.6]} 9... b6 {[%clk 0:02:42.2]}
10. d4 {[%clk 0:03:02.8]} 10... Bb7 {[%clk 0:02:42.8]} 11. Rad1 {[%clk
0:03:01.6]} 11... Rfe8 {[%clk 0:02:39.6]} 12. Bd3 {[%clk 0:02:24.4]} 12... h6
{[%clk 0:02:32.6]} 13. e4 {[%clk 0:02:23.7]} 13... dxe4 {[%clk 0:02:26.3]} 14.
Nxe4 {[%clk 0:02:24.8]} 14... Nxe4 {[%clk 0:02:27.8]} 15. Bxe4 {[%clk 0:02:26]}
15... Nf6 {[%clk 0:02:23.5]} 16. Bd3 {[%clk 0:02:22.9]} 16... c5 {[%clk
0:02:24.5]} 17. Qe2 {[%clk 0:02:00.8]} 17... Rad8 {[%clk 0:02:20.1]} 18. Rfe1
{[%clk 0:02:01.3]} 18... cxd4 {[%clk 0:02:03.9]} 19. Nxd4 {[%clk 0:02:00.4]}
19... Bb4 {[%clk 0:02:03.3]} 20. Rf1 {[%clk 0:01:56.4]} 20... Bc5 {[%clk
0:01:58.7]} 21. Nf3 {[%clk 0:01:49.8]} 21... Nh5 {[%clk 0:01:47.2]} 22. Be5
{[%clk 0:01:40.6]} 22... Nf6 {[%clk 0:01:28.7]} 23. h3 {[%clk 0:01:37.3]} 23...
Rd7 {[%clk 0:01:24.2]} 24. Bc2 {[%clk 0:01:34]} 24... Red8 {[%clk 0:01:21.3]}
25. Rxd7 {[%clk 0:01:34.9]} 25... Rxd7 {[%clk 0:01:22.5]} 26. Rd1 {[%clk
0:01:35.9]} 26... Rxd1+ {[%clk 0:01:20.6]} 27. Qxd1 {[%clk 0:01:36.7]} 27... Ne4
{[%clk 0:01:20]} 28. Bd4 {[%clk 0:01:33.2]} 28... Bb4 {[%clk 0:01:18.8]} 29. Be3
{[%clk 0:01:26.2]} 29... Nc3 {[%clk 0:01:15.7]} 30. Qd3 {[%clk 0:01:26.5]} 30...
Be4 {[%clk 0:01:10.7]} 31. Qd2 {[%clk 0:01:10.3]} 31... Nxa2 {[%clk 0:01:11]}
32. Qd1 {[%clk 0:00:46.1]} 32... Nc3 {[%clk 0:01:11.9]} 33. Qd2 {[%clk
0:00:42.9]} 33... Nd5 {[%clk 0:00:48.3]} 34. Qd1 {[%clk 0:00:34.9]} 34... Nxe3
{[%clk 0:00:47.7]} 35. fxe3 {[%clk 0:00:36]} 35... Bb7 {[%clk 0:00:47]} 36. Qd3
{[%clk 0:00:36.3]} 36... g6 {[%clk 0:00:45.6]} 37. Kf2 {[%clk 0:00:34.2]} 37...
Bc5 {[%clk 0:00:44.5]} 38. Qc3 {[%clk 0:00:31]} 38... a5 {[%clk 0:00:45.9]} 39.
Bd3 {[%clk 0:00:30.1]} 39... Qd6 {[%clk 0:00:45.6]} 40. Qc2 {[%clk 0:00:29.5]}
40... f5 {[%clk 0:00:37.8]} 41. Qc3 {[%clk 0:00:28]} 41... f4 {[%clk 0:00:35.4]}
42. Bxg6 {[%clk 0:00:21.4]} 42... Bxe3+ {[%clk 0:00:33.9]} 43. Ke2 {[%clk
0:00:22.6]} 43... Qd8 {[%clk 0:00:24.2]} 44. Qe5 {[%clk 0:00:21.9]} 44... Bxf3+
{[%clk 0:00:21.5]} 45. Kxf3 {[%clk 0:00:20]} 45... Qd1+ {[%clk 0:00:22.4]} 46.
Ke4 {[%clk 0:00:17.5]} 46... Qb1+ {[%clk 0:00:23.4]} 47. Kf3 {[%clk 0:00:17.4]}
47... Qxg6 {[%clk 0:00:25.3]} 48. Qb8+ {[%clk 0:00:18.1]} 48... Kh7 {[%clk
0:00:24.5]} 49. Qb7+ {[%clk 0:00:17.9]} 49... Kg8 {[%clk 0:00:23.6]} 50. Qc8+
{[%clk 0:00:18]} 50... Kf7 {[%clk 0:00:24.7]} 51. Qc7+ {[%clk 0:00:16.7]} 51...
Kf6 {[%clk 0:00:26]} 52. Qd8+ {[%clk 0:00:17.6]} 52... Kg7 {[%clk 0:00:24.9]}
53. Qc7+ {[%clk 0:00:17.2]} 53... Qf7 {[%clk 0:00:25.6]} 54. Qe5+ {[%clk
0:00:18.4]} 54... Kg6 {[%clk 0:00:27]} 55. Qe4+ {[%clk 0:00:16.6]} 55... Qf5
{[%clk 0:00:28]} 56. Qa8 {[%clk 0:00:16.6]} 56... Bc5 {[%clk 0:00:18.8]} 57.
Qg8+ {[%clk 0:00:15.9]} 57... Kh5 {[%clk 0:00:15.9]} 58. Qe8+ {[%clk 0:00:13.9]}
58... Kg5 {[%clk 0:00:16.1]} 59. Qg8+ {[%clk 0:00:12.6]} 59... Kf6 {[%clk
0:00:17.2]} 60. Qd8+ {[%clk 0:00:10.4]} 60... Ke5 {[%clk 0:00:12.3]} 61. Qb8+
{[%clk 0:00:08]} 61... Kd4 {[%clk 0:00:13.3]} 62. Qh8+ {[%clk 0:00:08.1]} 62...
e5 {[%clk 0:00:14.7]} 63. Qd8+ {[%clk 0:00:08.3]} 63... Kc3 {[%clk 0:00:15.4]}
0-1

[Event "*** Titled Tuesday Blitz"]
[Site "Chess.com"]
[Date "2019.01.01"]
[Round "5"]
[White "ASVZ"]
[Black "AnonymousBread"]
[Result "1-0"]
[WhiteElo "2272"]
[BlackElo "2531"]
[TimeControl "180+2"]
[EndTime "14:12:17 PST"]
[Termination "ASVZ won by resignation"]

1. e4 {[%clk 0:03:01.9]} 1... e5 {[%clk 0:03:00.1]} 2. Nf3 {[%clk 0:03:02.9]}
2... Nc6 {[%clk 0:03:01.8]} 3. Nc3 {[%clk 0:03:04.5]} 3... Nf6 {[%clk
0:03:00.4]} 4. Bb5 {[%clk 0:03:05.5]} 4... Bd6 {[%clk 0:03:01.7]} 5. O-O {[%clk
0:03:06.1]} 5... h6 {[%clk 0:03:03]} 6. b3 {[%clk 0:03:06.6]} 6... O-O {[%clk
0:03:04]} 7. Bb2 {[%clk 0:03:07.3]} 7... Re8 {[%clk 0:03:05.7]} 8. Re1 {[%clk
0:03:07.8]} 8... Bc5 {[%clk 0:03:07.3]} 9. h3 {[%clk 0:03:08.4]} 9... d6 {[%clk
0:03:08.7]} 10. Bxc6 {[%clk 0:03:08.1]} 10... bxc6 {[%clk 0:03:10.6]} 11. d4
{[%clk 0:03:09]} 11... exd4 {[%clk 0:03:09.7]} 12. Nxd4 {[%clk 0:03:10.9]} 12...
Bd7 {[%clk 0:03:03.8]} 13. Na4 {[%clk 0:03:11.1]} 13... Bxd4 {[%clk 0:03:00.7]}
14. Qxd4 {[%clk 0:03:06.3]} 14... c5 {[%clk 0:03:02]} 15. Qd3 {[%clk 0:03:07.3]}
15... Bxa4 {[%clk 0:03:00.7]} 16. bxa4 {[%clk 0:03:09.2]} 16... Rb8 {[%clk
0:03:01.9]} 17. Bc3 {[%clk 0:03:07.5]} 17... Nd7 {[%clk 0:02:57.7]} 18. f4
{[%clk 0:03:06.9]} 18... Qe7 {[%clk 0:02:54.5]} 19. Qg3 {[%clk 0:03:02.8]} 19...
f6 {[%clk 0:02:51.3]} 20. Kh2 {[%clk 0:02:43.8]} 20... Qf7 {[%clk 0:02:51.2]}
21. Rad1 {[%clk 0:02:40.9]} 21... Qxa2 {[%clk 0:01:52.6]} 22. e5 {[%clk
0:02:41.9]} 22... fxe5 {[%clk 0:01:53.1]} 23. fxe5 {[%clk 0:02:42.9]} 23... Nxe5
{[%clk 0:01:54]} 24. Bxe5 {[%clk 0:02:43.7]} 24... dxe5 {[%clk 0:01:54]} 25. Rd7
{[%clk 0:02:43.6]} 25... g5 {[%clk 0:01:32.9]} 26. Rxe5 {[%clk 0:02:43.8]} 26...
Qb2 {[%clk 0:00:52.9]} 27. c3 {[%clk 0:02:37.1]} 27... Qc1 {[%clk 0:00:46.9]}
28. Rxe8+ {[%clk 0:02:01.7]} 28... Rxe8 {[%clk 0:00:48.8]} 29. Qxc7 {[%clk
0:02:02.7]} 29... Qf4+ {[%clk 0:00:42]} 30. Qxf4 {[%clk 0:02:03.5]} 30... gxf4
{[%clk 0:00:43.9]} 31. Rxa7 {[%clk 0:01:50.2]} 31... Re3 {[%clk 0:00:44.5]} 32.
Ra6 {[%clk 0:01:42.5]} 32... Kg7 {[%clk 0:00:40.6]} 33. Kg1 {[%clk 0:01:35.8]}
33... Rxc3 {[%clk 0:00:41.4]} 34. Kf2 {[%clk 0:01:36.6]} 34... Ra3 {[%clk
0:00:23.2]} 35. a5 {[%clk 0:01:26.6]} 35... c4 {[%clk 0:00:21.6]} 36. Ke2 {[%clk
0:01:27.3]} 36... Rg3 {[%clk 0:00:19.6]} 37. Kf2 {[%clk 0:01:17.8]} 37... Ra3
{[%clk 0:00:20.4]} 38. Ra8 {[%clk 0:01:13.7]} 38... c3 {[%clk 0:00:20.6]} 39. a6
{[%clk 0:01:01.4]} 39... c2 {[%clk 0:00:14.8]} 40. Rc8 {[%clk 0:01:01.8]} 40...
Rxa6 {[%clk 0:00:15.9]} 41. Rxc2 {[%clk 0:01:02.9]} 41... Kg6 {[%clk 0:00:17.6]}
42. Rc5 {[%clk 0:01:02.1]} 42... Ra3 {[%clk 0:00:17.2]} 43. Rb5 {[%clk
0:01:03.4]} 43... h5 {[%clk 0:00:17.5]} 44. h4 {[%clk 0:01:02.4]} 44... Ra4
{[%clk 0:00:14.5]} 45. Rg5+ {[%clk 0:01:02.9]} 45... Kh6 {[%clk 0:00:15]} 46.
Kf3 {[%clk 0:01:04.2]} 46... Ra1 {[%clk 0:00:10.2]} 47. Kxf4 {[%clk 0:01:04.7]}
47... Ra4+ {[%clk 0:00:09.9]} 48. Kg3 {[%clk 0:01:06.1]} 48... Ra3+ {[%clk
0:00:10.1]} 49. Kh2 {[%clk 0:01:07.1]} 49... Ra4 {[%clk 0:00:10.8]} 50. Kh3
{[%clk 0:01:08.4]} 50... Ra3+ {[%clk 0:00:11.6]} 51. g3 {[%clk 0:01:09.8]} 51...
Ra1 {[%clk 0:00:13]} 52. Rb5 {[%clk 0:01:10.9]} 52... Rh1+ {[%clk 0:00:13.7]}
53. Kg2 {[%clk 0:01:11.4]} 53... Ra1 {[%clk 0:00:15.6]} 54. Rb6+ {[%clk
0:01:12.5]} 54... Kg7 {[%clk 0:00:16.6]} 55. Kf2 {[%clk 0:01:13.2]} 55... Ra3
{[%clk 0:00:17.4]} 56. Rc6 {[%clk 0:01:12]} 56... Kh7 {[%clk 0:00:18.1]} 57. Re6
{[%clk 0:01:12.8]} 57... Kg7 {[%clk 0:00:16.3]} 58. Rc6 {[%clk 0:01:12.9]} 58...
Kh7 {[%clk 0:00:16.5]} 59. Rd6 {[%clk 0:01:13.9]} 59... Kg7 {[%clk 0:00:17.8]}
60. Re6 {[%clk 0:01:15.4]} 60... Kh7 {[%clk 0:00:18.4]} 61. Re3 {[%clk
0:01:16.6]} 61... Ra4 {[%clk 0:00:17.2]} 62. Kf3 {[%clk 0:01:17.9]} 62... Kg6
{[%clk 0:00:18.5]} 63. Re4 {[%clk 0:01:16.3]} 63... Ra1 {[%clk 0:00:19.6]} 64.
Re6+ {[%clk 0:01:13.4]} 64... Kf5 {[%clk 0:00:20.4]} 65. Rh6 {[%clk 0:01:14.5]}
65... Ra3+ {[%clk 0:00:21.1]} 66. Kg2 {[%clk 0:01:15.4]} 66... Kg4 {[%clk
0:00:17.6]} 67. Rg6+ {[%clk 0:01:16.6]} 67... Kf5 {[%clk 0:00:19.3]} 68. Rg5+
{[%clk 0:01:18.5]} 68... Kf6 {[%clk 0:00:21]} 69. Rxh5 {[%clk 0:01:19.8]} 69...
Kg6 {[%clk 0:00:22.3]} 70. Rg5+ {[%clk 0:01:21.2]} 70... Kh6 {[%clk 0:00:24.2]}
71. Kh3 {[%clk 0:01:22.9]} 71... Ra1 {[%clk 0:00:25.5]} 72. Rb5 {[%clk
0:01:22.4]} 72... Kg6 {[%clk 0:00:25.1]} 73. Rb4 {[%clk 0:01:22.6]} 73... Ra3
{[%clk 0:00:25.7]} 74. Kg4 {[%clk 0:01:23.5]} 74... Kg7 {[%clk 0:00:27]} 75. h5
{[%clk 0:01:22]} 75... Ra1 {[%clk 0:00:26.8]} 76. Rb5 {[%clk 0:01:20.2]} 76...
Rh1 {[%clk 0:00:26]} 77. Kg5 {[%clk 0:01:20.9]} 77... Kf7 {[%clk 0:00:26.5]} 78.
Rb7+ {[%clk 0:01:21.6]} 78... Ke6 {[%clk 0:00:27.9]} 79. h6 {[%clk 0:01:22.8]}
79... Ke5 {[%clk 0:00:29.1]} 80. Re7+ {[%clk 0:01:21.9]} 80... Kd6 {[%clk
0:00:29.7]} 81. Re2 {[%clk 0:01:22.9]} 81... Rg1 {[%clk 0:00:30.6]} 82. g4
{[%clk 0:01:24]} 82... Rh1 {[%clk 0:00:32.5]} 83. Kg6 {[%clk 0:01:24.6]} 1-0

[Event "*** Titled Tuesday Blitz"]
[Site "Chess.com"]
[Date "2019.01.01"]
[Round "5"]
[White "MehdiHosseinipour"]
[Black "GrigorGrigorov"]
[Result "1-0"]
[WhiteElo "2571"]
[BlackElo "2772"]
[TimeControl "180+2"]
[EndTime "14:12:18 PST"]
[Termination "MehdiHosseinipour won on time"]

1. e4 {[%clk 0:03:01.9]} 1... e6 {[%clk 0:03:00.7]} 2. d4 {[%clk 0:03:03.2]}
2... d5 {[%clk 0:03:01.8]} 3. Nd2 {[%clk 0:03:04.9]} 3... c5 {[%clk 0:03:02.6]}
4. exd5 {[%clk 0:03:06.1]} 4... exd5 {[%clk 0:03:03.4]} 5. Ngf3 {[%clk
0:03:06.7]} 5... Nc6 {[%clk 0:03:02.7]} 6. Be2 {[%clk 0:03:06.9]} 6... cxd4
{[%clk 0:03:00.4]} 7. O-O {[%clk 0:03:07.8]} 7... Nf6 {[%clk 0:03:01.8]} 8. Nb3
{[%clk 0:03:08.6]} 8... Be7 {[%clk 0:03:01.9]} 9. Nbxd4 {[%clk 0:03:09.3]} 9...
O-O {[%clk 0:03:03]} 10. h3 {[%clk 0:03:08.6]} 10... Ne4 {[%clk 0:02:56.9]} 11.
c3 {[%clk 0:03:09.9]} 11... Re8 {[%clk 0:02:54.6]} 12. Re1 {[%clk 0:03:05.4]}
12... Bd6 {[%clk 0:02:37.2]} 13. Bd3 {[%clk 0:02:54.5]} 13... a6 {[%clk
0:02:37.8]} 14. Bc2 {[%clk 0:02:46]} 14... Bc7 {[%clk 0:02:35.9]} 15. Nxc6
{[%clk 0:01:57.5]} 15... bxc6 {[%clk 0:02:36.1]} 16. Bxe4 {[%clk 0:01:57.4]}
16... dxe4 {[%clk 0:02:35.8]} 17. Qxd8 {[%clk 0:01:59.3]} 17... Bxd8 {[%clk
0:02:34.4]} 18. Nd4 {[%clk 0:01:59.4]} 18... Bd7 {[%clk 0:02:10.5]} 19. Bf4
{[%clk 0:01:56.9]} 19... a5 {[%clk 0:02:04.1]} 20. Rad1 {[%clk 0:01:54.1]} 20...
a4 {[%clk 0:02:02.1]} 21. Nb5 {[%clk 0:01:38.3]} 21... cxb5 {[%clk 0:01:47.6]}
22. Rxd7 {[%clk 0:01:39.7]} 22... Bf6 {[%clk 0:01:45.7]} 23. a3 {[%clk
0:01:31.4]} 23... g5 {[%clk 0:01:39.8]} 24. Be3 {[%clk 0:01:22.3]} 24... Rad8
{[%clk 0:01:38.3]} 25. Red1 {[%clk 0:01:14.5]} 25... Rxd7 {[%clk 0:01:38.8]} 26.
Rxd7 {[%clk 0:01:16.4]} 26... Rd8 {[%clk 0:01:40]} 27. Rb7 {[%clk 0:01:02.8]}
27... Rd5 {[%clk 0:01:33.1]} 28. Kf1 {[%clk 0:01:03.9]} 28... h5 {[%clk
0:01:31.4]} 29. g4 {[%clk 0:01:03.3]} 29... hxg4 {[%clk 0:01:20]} 30. hxg4
{[%clk 0:01:05.2]} 30... Kg7 {[%clk 0:01:20.7]} 31. Ke2 {[%clk 0:01:05.6]} 31...
Kg6 {[%clk 0:01:22.3]} 32. Rb6 {[%clk 0:01:04.8]} 32... Kg7 {[%clk 0:01:19.3]}
33. Rc6 {[%clk 0:01:03.2]} 33... Be5 {[%clk 0:01:10.1]} 34. Bxg5 {[%clk
0:00:50.5]} 34... f6 {[%clk 0:01:07.1]} 35. Be3 {[%clk 0:00:51.1]} 35... Kf7
{[%clk 0:01:07.1]} 36. Rb6 {[%clk 0:00:37.9]} 36... Ke7 {[%clk 0:01:05.9]} 37.
f3 {[%clk 0:00:34.2]} 37... exf3+ {[%clk 0:01:05.9]} 38. Kxf3 {[%clk 0:00:36.1]}
38... Bc7 {[%clk 0:00:48.9]} 39. Rb7 {[%clk 0:00:33.5]} 39... Kd8 {[%clk
0:00:43.3]} 40. Bd4 {[%clk 0:00:33.8]} 40... Kc8 {[%clk 0:00:41.2]} 41. Ra7
{[%clk 0:00:32.8]} 41... Rd6 {[%clk 0:00:34.8]} 42. Ra8+ {[%clk 0:00:21.3]}
42... Kd7 {[%clk 0:00:23.1]} 43. Rf8 {[%clk 0:00:19.9]} 43... Bd8 {[%clk
0:00:21.7]} 44. Ke4 {[%clk 0:00:18.3]} 44... Re6+ {[%clk 0:00:22.3]} 45. Kf5
{[%clk 0:00:19.8]} 45... Re2 {[%clk 0:00:20.3]} 46. Rf7+ {[%clk 0:00:17.4]}
46... Ke8 {[%clk 0:00:18.3]} 47. Rb7 {[%clk 0:00:17.1]} 47... Rxb2 {[%clk
0:00:19.1]} 48. Rb8 {[%clk 0:00:14.8]} 48... Kd7 {[%clk 0:00:18.5]} 49. c4
{[%clk 0:00:10.1]} 49... Rd2 {[%clk 0:00:18.6]} 50. Be3 {[%clk 0:00:11.3]} 50...
Rd3 {[%clk 0:00:17.9]} 51. Ke4 {[%clk 0:00:12.6]} 51... Rxa3 {[%clk 0:00:17.5]}
52. cxb5 {[%clk 0:00:14.1]} 52... Rb3 {[%clk 0:00:18.4]} 53. Bd4 {[%clk
0:00:14.1]} 53... Bc7 {[%clk 0:00:14.8]} 54. Rb7 {[%clk 0:00:13]} 54... Kc8
{[%clk 0:00:12.6]} 55. Ra7 {[%clk 0:00:14.4]} 55... a3 {[%clk 0:00:13.7]} 56.
Kd5 {[%clk 0:00:09.4]} 56... Rb4 {[%clk 0:00:07.5]} 57. Bc5 {[%clk 0:00:07]}
57... Rxb5 {[%clk 0:00:02.7]} 58. Kc6 {[%clk 0:00:08.4]} 58... Rxc5+ {[%clk
0:00:04]} 59. Kxc5 {[%clk 0:00:10.3]} 1-0

[Event "*** Titled Tuesday Blitz"]
[Site "Chess.com"]
[Date "2019.01.01"]
[Round "5"]
[White "Peroncio"]
[Black "MatyChess1"]
[Result "1-0"]
[WhiteElo "2634"]
[BlackElo "2488"]
[TimeControl "180+2"]
[EndTime "14:12:30 PST"]
[Termination "Peroncio won on time"]

1. e4 {[%clk 0:03:01.9]} 1... c5 {[%clk 0:02:55.5]} 2. Nc3 {[%clk 0:03:02.5]}
2... Nc6 {[%clk 0:02:53.4]} 3. Bb5 {[%clk 0:03:03.1]} 3... Nd4 {[%clk
0:02:51.6]} 4. Nf3 {[%clk 0:03:04.5]} 4... e6 {[%clk 0:02:51.8]} 5. O-O {[%clk
0:03:04.5]} 5... Qc7 {[%clk 0:02:46.7]} 6. Nxd4 {[%clk 0:03:00.2]} 6... cxd4
{[%clk 0:02:48.6]} 7. Ne2 {[%clk 0:03:01.8]} 7... Bc5 {[%clk 0:02:45.9]} 8. d3
{[%clk 0:02:57.2]} 8... Nf6 {[%clk 0:02:40.7]} 9. Ba4 {[%clk 0:02:54.2]} 9...
Ng4 {[%clk 0:02:27.2]} 10. Bf4 {[%clk 0:02:36.9]} 10... Bd6 {[%clk 0:02:25.9]}
11. Qd2 {[%clk 0:02:34]} 11... Bxf4 {[%clk 0:02:19.3]} 12. Qxf4 {[%clk
0:02:35.7]} 12... Qxf4 {[%clk 0:02:19.8]} 13. Nxf4 {[%clk 0:02:36.2]} 13... a6
{[%clk 0:01:36.6]} 14. Ne2 {[%clk 0:02:35.7]} 14... e5 {[%clk 0:01:26.8]} 15. h3
{[%clk 0:02:36.5]} 15... Nh6 {[%clk 0:01:23.4]} 16. f4 {[%clk 0:02:35.2]} 16...
f6 {[%clk 0:01:24.1]} 17. fxe5 {[%clk 0:02:23.2]} 17... fxe5 {[%clk 0:01:24.5]}
18. Bb3 {[%clk 0:02:24.6]} 18... d6 {[%clk 0:01:14.3]} 19. Bd5 {[%clk
0:02:20.7]} 19... Rb8 {[%clk 0:01:00.8]} 20. c3 {[%clk 0:02:17.5]} 20... dxc3
{[%clk 0:01:01]} 21. bxc3 {[%clk 0:02:19.4]} 21... Ke7 {[%clk 0:00:51.8]} 22. a4
{[%clk 0:02:17.8]} 22... b6 {[%clk 0:00:46.4]} 23. c4 {[%clk 0:02:13.9]} 23...
Bd7 {[%clk 0:00:43.3]} 24. Nc3 {[%clk 0:02:10.4]} 24... Rhf8 {[%clk 0:00:44.2]}
25. Rfb1 {[%clk 0:02:04.9]} 25... Kd8 {[%clk 0:00:30.5]} 26. Rb2 {[%clk
0:02:03.9]} 26... Kc7 {[%clk 0:00:31.2]} 27. Rab1 {[%clk 0:02:05.5]} 27... a5
{[%clk 0:00:27.4]} 28. Rd2 {[%clk 0:01:43.2]} 28... g5 {[%clk 0:00:26.3]} 29. d4
{[%clk 0:01:14.6]} 29... exd4 {[%clk 0:00:20.7]} 30. Rxd4 {[%clk 0:01:16.5]}
30... g4 {[%clk 0:00:21]} 31. h4 {[%clk 0:01:15.6]} 31... g3 {[%clk 0:00:21.9]}
32. Rd3 {[%clk 0:01:15.5]} 32... Ng4 {[%clk 0:00:13]} 33. Rxg3 {[%clk
0:01:14.6]} 33... h5 {[%clk 0:00:14.6]} 34. Nb5+ {[%clk 0:00:58.6]} 34... Bxb5
{[%clk 0:00:15]} 35. cxb5 {[%clk 0:00:59.9]} 35... Kd8 {[%clk 0:00:15.3]} 36.
Rc1 {[%clk 0:01:00.6]} 36... Rf4 {[%clk 0:00:11.8]} 37. Rc6 {[%clk 0:00:58.5]}
37... Kd7 {[%clk 0:00:10.1]} 38. Rgc3 {[%clk 0:00:57.8]} 38... Ke7 {[%clk
0:00:10.2]} 39. Rc7+ {[%clk 0:00:52]} 39... Kf6 {[%clk 0:00:11.1]} 40. Rf7+
{[%clk 0:00:52.1]} 40... Ke5 {[%clk 0:00:12.4]} 41. Rxf4 {[%clk 0:00:53.5]}
41... Kxf4 {[%clk 0:00:14.3]} 42. Rf3+ {[%clk 0:00:55.1]} 42... Ke5 {[%clk
0:00:14.8]} 43. Rf5+ {[%clk 0:00:56.6]} 43... Kd4 {[%clk 0:00:16]} 44. Rxh5
{[%clk 0:00:57.8]} 44... Nf6 {[%clk 0:00:15]} 45. Rf5 {[%clk 0:00:57]} 45...
Nxe4 {[%clk 0:00:13]} 46. Bc6 {[%clk 0:00:36.9]} 46... Nc3 {[%clk 0:00:12.1]}
47. h5 {[%clk 0:00:38.3]} 47... Rh8 {[%clk 0:00:12.8]} 48. g4 {[%clk 0:00:37.3]}
48... Nxa4 {[%clk 0:00:14]} 49. Rd5+ {[%clk 0:00:38.2]} 49... Kc3 {[%clk
0:00:13.7]} 50. Rxd6 {[%clk 0:00:39.8]} 50... Nc5 {[%clk 0:00:15.6]} 51. Bd5
{[%clk 0:00:35.2]} 51... a4 {[%clk 0:00:15.8]} 52. Rxb6 {[%clk 0:00:34.9]} 52...
Kd4 {[%clk 0:00:10.8]} 53. Bf7 {[%clk 0:00:32.7]} 53... Rf8 {[%clk 0:00:10.5]}
54. Rd6+ {[%clk 0:00:31.6]} 54... Ke3 {[%clk 0:00:05.3]} 55. Bd5 {[%clk
0:00:22.4]} 55... Nd3 {[%clk 0:00:04.7]} 56. h6 {[%clk 0:00:21.1]} 56... Nf4
{[%clk 0:00:03.7]} 57. h7 {[%clk 0:00:20.5]} 57... Rh8 {[%clk 0:00:04.6]} 58.
Bg8 {[%clk 0:00:20.7]} 1-0

[Event "*** Titled Tuesday Blitz"]
[Site "Chess.com"]
[Date "2019.01.01"]
[Round "5"]
[White "kjzsdu"]
[Black "BlackBoarder"]
[Result "0-1"]
[WhiteElo "2526"]
[BlackElo "2566"]
[TimeControl "180+2"]
[EndTime "14:12:32 PST"]
[Termination "BlackBoarder won by resignation"]

1. e4 {[%clk 0:03:01.8]} 1... e6 {[%clk 0:03:00.9]} 2. d4 {[%clk 0:03:02.7]}
2... d5 {[%clk 0:03:02]} 3. Nc3 {[%clk 0:03:04.3]} 3... Bb4 {[%clk 0:03:02.8]}
4. Bd2 {[%clk 0:03:04.8]} 4... dxe4 {[%clk 0:03:02.6]} 5. Qg4 {[%clk 0:03:06.1]}
5... Nf6 {[%clk 0:03:03.8]} 6. Qxg7 {[%clk 0:03:06.8]} 6... Rg8 {[%clk
0:03:04.9]} 7. Qh6 {[%clk 0:03:08.4]} 7... Qxd4 {[%clk 0:03:01]} 8. O-O-O {[%clk
0:03:09.5]} 8... Bf8 {[%clk 0:03:02]} 9. Qh4 {[%clk 0:02:40.3]} 9... Rg4 {[%clk
0:03:02.4]} 10. Qh3 {[%clk 0:02:41.5]} 10... Qxf2 {[%clk 0:03:02.9]} 11. Be2
{[%clk 0:02:43]} 11... Rh4 {[%clk 0:03:03.7]} 12. Qxh4 {[%clk 0:02:44.5]} 12...
Qxh4 {[%clk 0:03:05.3]} 13. g3 {[%clk 0:02:46]} 13... Qh6 {[%clk 0:03:06.9]} 14.
Bxh6 {[%clk 0:02:45.1]} 14... Bxh6+ {[%clk 0:03:08.8]} 15. Kb1 {[%clk
0:02:46.5]} 15... a6 {[%clk 0:03:02.5]} 16. Nh3 {[%clk 0:02:03.4]} 16... b5
{[%clk 0:03:02.3]} 17. Rhf1 {[%clk 0:01:51.5]} 17... Ke7 {[%clk 0:03:03.1]} 18.
g4 {[%clk 0:01:45.7]} 18... b4 {[%clk 0:02:23.3]} 19. g5 {[%clk 0:01:24.4]}
19... Bxg5 {[%clk 0:02:24.5]} 20. Nxg5 {[%clk 0:00:59.5]} 20... bxc3 {[%clk
0:02:25.5]} 21. bxc3 {[%clk 0:00:45]} 21... Nbd7 {[%clk 0:02:25.4]} 22. Rf4
{[%clk 0:00:39.7]} 22... Bb7 {[%clk 0:02:23.8]} 23. c4 {[%clk 0:00:18.9]} 23...
Bc6 {[%clk 0:02:16]} 24. h4 {[%clk 0:00:13.5]} 24... h6 {[%clk 0:02:16]} 25. Nh3
{[%clk 0:00:12.5]} 25... Rg8 {[%clk 0:02:17.4]} 26. Rdf1 {[%clk 0:00:12.2]}
26... Rg3 {[%clk 0:02:04.3]} 27. Ng1 {[%clk 0:00:13.4]} 27... Re3 {[%clk
0:01:57.6]} 28. Bd1 {[%clk 0:00:10.5]} 28... Rc3 {[%clk 0:01:50.7]} 29. Be2
{[%clk 0:00:11.1]} 29... Re3 {[%clk 0:01:44.3]} 30. Kb2 {[%clk 0:00:10.9]} 30...
a5 {[%clk 0:01:43.5]} 31. Bd1 {[%clk 0:00:10.1]} 31... a4 {[%clk 0:01:44.7]} 32.
Ne2 {[%clk 0:00:06.3]} 32... a3+ {[%clk 0:01:44.8]} 33. Kc1 {[%clk 0:00:07.6]}
33... Rh3 {[%clk 0:01:41.4]} 34. Ng1 {[%clk 0:00:06.3]} 34... Rh2 {[%clk
0:01:38.7]} 35. Ne2 {[%clk 0:00:03.7]} 35... e3 {[%clk 0:01:35.2]} 36. Nc3
{[%clk 0:00:03.1]} 36... Rh3 {[%clk 0:01:18.3]} 37. Be2 {[%clk 0:00:04.4]} 37...
Bg2 {[%clk 0:01:16.8]} 38. Rg1 {[%clk 0:00:04.6]} 38... Bc6 {[%clk 0:01:16.9]}
39. Rgf1 {[%clk 0:00:06.2]} 39... Rg3 {[%clk 0:01:07.1]} 40. Kd1 {[%clk
0:00:04.8]} 40... Rh3 {[%clk 0:01:05.3]} 41. Nb1 {[%clk 0:00:05.9]} 41... Rg3
{[%clk 0:00:41.9]} 42. Nxa3 {[%clk 0:00:06.9]} 42... Rg7 {[%clk 0:00:43.5]} 43.
Nb1 {[%clk 0:00:07.8]} 43... Ne4 {[%clk 0:00:44.8]} 44. Rxe4 {[%clk 0:00:07.3]}
44... Bxe4 {[%clk 0:00:45.8]} 45. Nc3 {[%clk 0:00:09.2]} 45... Bc6 {[%clk
0:00:44.9]} 46. a4 {[%clk 0:00:10.3]} 46... f5 {[%clk 0:00:44.6]} 47. a5 {[%clk
0:00:11.5]} 47... Nc5 {[%clk 0:00:45.3]} 48. Bf3 {[%clk 0:00:08.6]} 48... Kd6
{[%clk 0:00:28.2]} 49. Nb5+ {[%clk 0:00:08]} 49... Kd7 {[%clk 0:00:21.1]} 50.
Ke2 {[%clk 0:00:03.7]} 50... Rg3 {[%clk 0:00:18]} 51. Nd4 {[%clk 0:00:02.3]}
51... Bxf3+ {[%clk 0:00:17.2]} 52. Rxf3 {[%clk 0:00:04.2]} 52... Rxf3 {[%clk
0:00:14.1]} 53. Kxf3 {[%clk 0:00:05.1]} 53... Kc8 {[%clk 0:00:12]} 54. Kxe3
{[%clk 0:00:05.7]} 54... Kb7 {[%clk 0:00:13.7]} 55. Nb3 {[%clk 0:00:05.5]} 55...
Nxb3 {[%clk 0:00:09.3]} 56. cxb3 {[%clk 0:00:06.8]} 56... c5 {[%clk 0:00:10.6]}
57. b4 {[%clk 0:00:02.2]} 57... cxb4 {[%clk 0:00:11.7]} 58. Kd4 {[%clk
0:00:03.5]} 58... f4 {[%clk 0:00:11.4]} 59. c5 {[%clk 0:00:03.9]} 59... f3
{[%clk 0:00:12.7]} 60. Ke3 {[%clk 0:00:04.7]} 60... b3 {[%clk 0:00:13.9]} 0-1